Cogmind - Beta 14 @@@ ROGUE MODE // 2024.11.22 @ 22:17:19 Player: human Result: Destroyed by G-34 Mercenary with Small Laser Performance ------------- Evolutions (0) 0 Regions Visited (1) 200 Robots Destroyed (8) 40 Value Destroyed (195) 195 Prototype IDs (0) 0 Alien Tech Used (0) 0 Bonus (0) 0 TOTAL SCORE: 435 Bonus ------- None Cogmind --------- Core Integrity 0/250 Matter 237/300 Energy 124/160 System Corruption 0% Temperature Cool (6) Movement Rolling (80) Location -10/Materials Parts ------- > --- POWER (1) -------- Light Nuclear Core > --- PROPULSION (2) --- Wheel Wheel > --- UTILITY (2) ------ Small Storage Unit Sensor Array > --- WEAPON (2) ------- Particle Gun Improved Light Cannon > --- INVENTORY (8) ---- Ion Engine Light Treads Light Treads Signal Interpreter ECM Suite Improved Light Cannon Improved Light Cannon Improved Light Cannon Peak State ------------ > --- POWER ------------ Light Nuclear Core > --- PROPULSION ------- Wheel Wheel > --- UTILITY ---------- Small Storage Unit Sensor Array > --- WEAPON ----------- Particle Gun Improved Light Cannon > --- INVENTORY -------- Ion Engine Light Treads Light Treads Signal Interpreter ECM Suite Improved Light Cannon Improved Light Cannon Improved Light Cannon [Rating: 12] Favorites ----------- Power Ion Engine Engine Ion Engine Power Core Light Nuclear Core Propulsion Light Treads Treads Light Treads Wheel Wheel Utility Small Storage Unit Device Sensor Array Storage Small Storage Unit Weapon Assault Rifle Energy Gun Medium Laser Ballistic Gun Assault Rifle Ballistic Cannon Improved Light Cannon Build | -11 -10 ------- Run | Yrd Mat Slots Evolved . | . . Power . | . . Propulsion . | . . Utility . | . . Weapon . | . . Parts Attached 16 | 9 7 Power 2 | 1 1 Engine 1 | 1 . Core 1 | . 1 Reactor . | . . Propulsion 6 | 4 2 Treads 2 | 2 . Leg . | . . Wheel 4 | 2 2 Hover . | . . Flight . | . . Utility 2 | 1 1 Device 1 | . 1 Storage 1 | 1 . Processor . | . . Hackware . | . . Protection . | . . Artifact . | . . Weapon 6 | 3 3 Energy Gun 3 | 1 2 Energy Cannon . | . . Ballistic Gun 2 | 2 . Ballistic Cannon 1 | . 1 Launcher . | . . Special Weapon . | . . Impact Weapon . | . . Slashing Weapon . | . . Piercing Weapon . | . . Special Melee Weapon . | . . Unidentified Prototypes . | . . Parts Lost 4 | . 4 Power 1 | . 1 Propulsion . | . . Utility . | . . Weapon 3 | . 3 Highest Loss Streak 3 | . 3 To Critical Strikes . | . . Average Slot Usage (%) 85 | . 85 Engine 8 | . 8 Treads 24 | . 24 Wheel 3 | . 3 Device 8 | . 8 Storage 14 | . 14 Energy Gun 13 | . 13 Ballistic Gun 9 | . 9 Peak Build Rating 12 | 6 12 Average Rating 5 | 3 6 On Entrance 3 | . 6 Naked Turns . | . . Heaviest Build 18 | 14 18 Greatest Support 40 | 40 40 Greatest Overweight (x) . | . . Average Overweight (x) . | . . Largest Inventory Capacity 8 | 8 8 Average Capacity 7 | 6 8 Most Carried 8 | 5 8 Average Carried 4 | 2 4 Final Capacity 8 | 8 8 Final Carried 8 | 3 8 Class Distribution -------------------- 100% | Mutant Dominant Class ---------------- Mutant | -10/Materials Resources | -11 -10 ----------- Run | Yrd Mat Matter Collected 335 | 192 143 Remotely . | . . Salvage Created 244 | . 244 Parts 19 | . 19 Haulers Intercepted . | . . Recyclers Shooed . | . . Parts Field Recycled . | . . Retrieved Matter . | . . Parts Self-Destructed . | . . Prevented . | . . Kills | -11 -10 ------- Run | Yrd Mat Combat Hostiles Destroyed 7 | . 7 Guns 7 | . 7 Classes Destroyed 3 | . 3 Watcher 1 | . 1 Swarmer 3 | . 3 Grunt 4 | . 4 Best Kill Streak 4 | . 4 Combat Bots Only 4 | . 4 Max Kills in Single Turn 1 | . 1 Gunslinging . | . . Exploded . | . . Melee . | . . Uniques/NPCs Destroyed . | . . Combat | -11 -10 -------- Run | Yrd Mat Hostile Shots Fired 116 | . 116 Missed 34 | . 34 Damage Taken 879 | . 879 Core 259 | . 259 Absorbed by Shields . | . . Core Remaining (%) 100 | 100 . Volleys Fired 25 | . 25 Largest 2 | . 2 Hottest 104 | . 104 Shots Fired 39 | . 39 Gun 38 | . 38 Cannon 1 | . 1 Launcher . | . . Special . | . . Kinetic 19 | . 19 Thermal 20 | . 20 Explosive . | . . Electromagnetic . | . . Robot Hit Streak 10 | . 10 Robot Miss Streak 3 | . 3 Penetration Max . | . . Secondary Targets . | . . Shots Hit Robots 27 | . 27 Core Hits 12 | . 12 Critical Kills . | . . Critical Parts Destroyed . | . . Critical Strikes . | . . Melee Attacks . | . . Impact . | . . Slashing . | . . Piercing . | . . Sneak Attacks . | . . Combat Hostiles . | . . Follow-up Attacks . | . . Damage Inflicted 377 | . 377 Guns 377 | . 377 Cannons . | . . Explosions . | . . Melee . | . . Ramming . | . . Kinetic 160 | . 160 Thermal 217 | . 217 Explosive . | . . Electromagnetic . | . . Impact . | . . Slashing . | . . Piercing . | . . Highest Corruption . | . . Average Corruption . | . . Corruption Purged . | . . Corruption Blocked . | . . Overload Shots . | . . Overflow Damage . | . . Projectiles . | . . Explosions . | . . Melee . | . . Knockbacks . | . . Impact . | . . Kinetic . | . . Secondary . | . . Self-Inflicted Damage . | . . Shots . | . . Rammed . | . . Targets Rammed . | . . Kicked . | . . Crushed . | . . Highest Temperature 195 | . 195 Average Temperature 80 | . 80 Received Heat Transfer 360 | . 360 Siege Activations . | . . Robots Corrupted . | . . Combat Hostiles . | . . Parts Fried . | . . Impact Corruptions . | . . Robots Melted . | . . Combat Hostiles . | . . Parts Melted 1 | . 1 Heat Transferred 592 | . 592 Parts Sabotaged . | . . Parts Stolen . | . . Parts Stripped . | . . Power Chain Reactions . | . . Alert | -11 -10 ------- Run | Yrd Mat Peak Influence 172 | . 172 Initial . | . . Average 52 | . 69 Maximum Alert Level . | . . Low Security (%) 100 | 100 100 Level 1 . | . . Level 2 . | . . Level 3 . | . . Level 4 . | . . Level 5 . | . . High Security . | . . Max Security . | . . Squads Dispatched 3 | . 3 Investigation 1 | . 1 Extermination . | . . Reinforcement 2 | . 2 Assault . | . . Garrison . | . . Intercept . | . . Searches Triggered . | . . Construction Impeded . | . . Haulers Reinforced . | . . Active Scanning Responses . | . . Cargo Convoy Interrupts . | . . Stealth | -11 -10 --------- Run | Yrd Mat Distress Signals 2 | . 2 Communications Jammed . | . . Distress Signals . | . . Times Spotted 14 | . 14 Peak Tracking Total 7 | . 7 Tactical Retreats . | . . Traps | -11 -10 ------- Run | Yrd Mat Traps Triggered 1 | . 1 Indirectly . | . . Trap Hack Attempts . | . . Triggered . | . . Disarmed . | . . Reprogrammed . | . . Reused . | . . Traps Extracted . | . . Installed . | . . Triggered . | . . Machines | -11 -10 ---------- Run | Yrd Mat Machines Disabled . | . . Max in Single Turn . | . . Machines Repaired . | . . Machines Dismantled . | . . Machines Sabotaged . | . . Overloaded Fab Kills . | . . Hacking | -11 -10 --------- Run | Yrd Mat Machines Accessed 3 | . 3 Terminals 2 | . 2 Fabricators . | . . Repair Stations . | . . Recycling Units 1 | . 1 Scanalyzers . | . . Garrison Access . | . . Total Hacks 4 | . 4 Successful 3 | . 3 Failed 1 | . 1 Catastrophic . | . . Database Lockouts . | . . Manual 1 | . 1 Terminals 3 | . 3 Fabricators . | . . Repair Stations . | . . Recycling Units 1 | . 1 Scanalyzers . | . . Garrison Access . | . . Terminal Hacks 1 | . 1 Zone Layout 1 | . 1 Fabricator Hacks . | . . Repair Station Hacks . | . . Recycling Unit Hacks 1 | . 1 Retrieve Components 1 | . 1 Scanalyzer . | . . Garrison Access Hacks . | . . Unauthorized Hacks 1 | . 1 Terminals 1 | . 1 Assimilate 1 | . 1 Fabricators . | . . Repair Stations . | . . Recycling Units . | . . Scanalyzers . | . . Garrison Access . | . . Data Cores Recovered . | . . Used . | . . Hacking Detections 2 | . 2 Full Trace Events . | . . Feedback Events . | . . Feedback Blocked . | . . Robot Schematics Acquired . | . . Robots Built . | . . Authchips . | . . Time . | . . Total Robot Build Rating . | . . Part Schematics Acquired . | . . Parts Built . | . . Authchips . | . . Time . | . . Total Part Build Rating . | . . Parts Repaired . | . . Time . | . . Parts Recycled . | . . Recycled Matter . | . . Retrieved Matter . | . . Retrieved Components 9 | . 9 Parts Scanalyzed . | . . Part Schematics Acquired . | . . Parts Damaged . | . . Bothacking | -11 -10 ------------ Run | Yrd Mat Used RIF Installer . | . . Robots Hacked . | . . Non-combat . | . . Combat . | . . Robot Hacks Applied . | . . Relay Couplers Released . | . . Fabnet Peak Effective % . | . . Robots Rewired . | . . Allies Hacked . | . . Hacks Repelled . | . . Allies | -11 -10 -------- Run | Yrd Mat Total Allies 1 | . 1 Largest Group 1 | . 1 Highest-Rated Group 10 | . 10 Highest-Rated Ally 10 | . 10 Total Orders . | . . Ally Attacks . | . . Total Damage . | . . Kills . | . . Allies Corrupted . | . . Allies Melted . | . . Intel | -11 -10 ------- Run | Yrd Mat Robot Analysis Total . | . . Derelict Logs Recovered . | . . Drone Launches . | . . Drone Recoveries . | . . Exploration | -11 -10 ------------- Run | Yrd Mat Turns Passed 323 | 77 246 Spaces Moved 168 | 55 113 Core 23 | 23 . Treads 119 | 27 92 Legs . | . . Wheels 26 | 5 21 Hover . | . . Flight . | . . Fastest Speed 50 | 50 80 Average Speed 132 | 106 145 Slowest Speed 160 | 160 160 Overloaded Moves . | . . Propulsion Burnouts . | . . Robots Hopped . | . . Cave-ins Triggered . | . . Exploration Rate (%) 19 | 4 34 Regions Visited 1 Branch Regions . Pre-discovered Areas . | . . Known Exits Taken . | . . Unknown Exits Taken 1 | 1 . Scrap Searched . | . . Spaces Dug . | . . Terrain Destroyed . | . . Melee . | . . Projectile . | . . AOE . | . . Terrain Rammed . | . . Walls Destroyed . | . . Machines Disabled . | . . Actions | -11 -10 --------- Run | Yrd Mat Total 229 | 72 157 Wait 2 | . 2 Move 167 | 54 113 Hop . | . . Pick Up 19 | 9 10 Fast Attach . | . . Attach 11 | 6 5 Detach . | . . Swap 5 | 3 2 Drop . | . . Fire 25 | . 25 Melee . | . . Ram . | . . Kick . | . . Crush . | . . Escape Stasis . | . . Rewire . | . . Trap . | . . Miscellaneous . | . . Route ------- -11/Scrapyard -10/Materials (discovered 1 exit: [*Mat]) History --------- Turn | Location | Event 4 | -11/Scrapyard | Discovered new exit (range 13) 78 | -11/Scrapyard | Entered Materials 184 | -10/Materials | Core integrity fell below 50% 254 | -10/Materials | Core integrity fell below 20% 271 | -10/Materials | Lost 3 parts (1p2w) 288 | -10/Materials | Discovered new exit (range 11) 314 | -10/Materials | Build established: Mutant 324 | -10/Materials | Destroyed by G-34 Mercenary with Small Laser Last Messages --------------- Aluminum Leg 00268_ Acquired Particle Gun. 00272_ S-10 Pest destroyed. 00273_ R-06 Scavenger collects Flight Unit. 00277_ Acquired EM Pulse Gun. 00283_ Acquired Lgt. Nuclear Core. 00288_ EXIT=FOUND 00293_ EM Pulse Gun destroyed. 00300_ S-10 Pest destroyed. 00302_ G-34 Mercenary destroyed. 00304_ R-06 Scavenger collects Ion Engine. 00306_ Triggered Alarm Trap. 00306_ An alarm sounds. 00306_ ALERT: Alarm triggered, dispatching investigation squad. 00308_ R-06 Scavenger collects Flight Unit. 00311_ Acquired Imp. Light Cannon. 00312_ ALERT: Hostiles spotted, dispatching reinforcements to Terminal M007. 00313_ Acquired Imp. Light Cannon. Map ----- +----------------------------------------------------+ | | | | | | | | | | | | | | | | | ?????????????????????????????????????????????????? | | ?????????????????????????????????????????????????? | | ?????????????????????????????????????????????????? | | ?????????????????????????????????????????????????? | | ?????????????????????????????????????????????????? | | ?????????????????????????????????????????????????? | | ???????????????????????????????#####?????????????? | | ???????????????????????????????# #?????????????? | | ???????????????????????????????# < #?????????????? | | ???????????????????????????????# ? #?????????????? | | ???????????????????????????????+ ? +?????????????? | | ???????????????????????????????# #?????????????? | | ???????????????????????????????# #?????????????? | | ???????????? #????############# ########??????? | | ???????????? ##????#!! ######## ########## ? | | ????????????##?????#!! g ? | | ????????????#??????#]] T ? | | ????????????#??????#]] @ g % ? | | ????????????#??????# ###### rr #########????? | | ????????????##?????# #?######+######?????????? | | ???????????? #?????##### #?# ###???????? | | ???????????? #?????????# #?# ?""#???????? | | ???????????? #?????????# ### ? == Y"#???????? | | ???????????? #?????????# + ? !=""#???????? | | ???????????? #?????????##### /###???????? | | ????????????##?????????????# #?????????? | | ????????????#??????????????# % #?????????? | | ????????????#???????????#############+###????????? | | ????????????#?????##????# "T" # #######??? | | ????????????#????# #### == # | | ????????????#????# ## """ """ / | | ????????????#????# ## """ """ # | | ????????????######### ### """%""" # ###+###### | | ????????????## # / % ####### ??????? | | ????????????## " # ## #?????# ??????? | | ?????????? ## T # ## #?????# ??????? | | ????????# ## " # ############?????# ??????? | | ????????# ## # ##???????????????# ??????? | | ????????# #####+# #???????????????# ??????? | | ????????# #???????????????# ??????? | | ??????? # #???????????????# ??????? | | ????????+ #???????????#######??????? | +----------------------------------------------------+ Best States ------------- Heat Dissipation 25 Energy Generation 14 Energy Capacity 250 Matter Stores 296 Matter Capacity 300 Sight Range 16 Robot Scan Range 14 Terrain Scan Density 10 Evasion (%) 50 Recoil Reduction 2 Item Schematics ----------------- None Robot Schematics ------------------ None Fabricated ------------ Nothing Alien Tech Used ----------------- None Achievements -------------- None Challenges ------------ None Game ------ Seed VortexZioniteProcessor Manual? 0 Play Time 00:08:29 Cumulative 41.7 hours Start 2024.11.22 @ 22:10:19 End 2024.11.22 @ 22:17:19 Sessions 1 Manual Loads 0 Difficulty Rogue Special Mode None Game No. 28 Rogue 28 Adventurer 0 Explorer 0 Win Type - Total 0 Types 0/0/0/0/0/0/0/0/0 Lore% 9 Gallery% 29 Achievement% 25 Wizard Run 0 Options --------- Layout 1 ASCII 0 Keyboard 0 Movement Mouse Keybinds 0 Fullscreen 1 Font 24/Smallcaps Map View 50x35 Zoom Use 0% Tactical HUD 1 Map Filters NONE Filters NONE Steam 1 RUN: e77a334d-c3dd-4f4e-8386-816087bf4f8d